Cogmind - Beta 11.1 @@@ ROGUE MODE // 2022.06.28 @ 16:51:00 Player: Cyurio Result: Destroyed by C-35 Carver with Carbide Saw Performance ------------- Evolutions (5) 2500 Regions Visited (10) 2000 Robots Destroyed (119) 595 Value Destroyed (4506) 4506 Prototype IDs (1) 20 Alien Tech Used (0) 0 Bonus (1967) 1967 TOTAL SCORE: 11588 Bonus ------- High Alert Combat Kills 462 Follower Combat Kills 105 Entered Garrisons 400 Used RIF Installer 1000 Cogmind --------- Core Integrity 0/1000 Matter 56/300 Energy 5/100 System Corruption 0% Temperature Cool (0) Movement Core (50) Location -5/Garrison Parts ------- > --- POWER (1) -------- (None) > --- PROPULSION (6) --- Gyrokinetic Inverter > --- UTILITY (7) ------ (None) > --- WEAPON (3) ------- (None) > --- INVENTORY (5) ---- Deuterium Engine Armored Huge Wheel Huge Storage Unit Advanced ECM Suite Peak State ------------ > --- POWER ------------ Improved Deuterium Engine > --- PROPULSION ------- Gyrokinetic Inverter Gyrokinetic Inverter Gyrokinetic Inverter Gyrokinetic Inverter Gyrokinetic Inverter Gyrokinetic Inverter > --- UTILITY ---------- Improved Signal Interpreter Terrain Scan Processor Recoil Nullifier Improved Power Shielding > --- WEAPON ----------- Heavy Assault Rifle Heavy Machine Gun Heavy Flak Cannon > --- INVENTORY -------- Deuterium Engine Armored Huge Wheel Huge Storage Unit Advanced ECM Suite [Rating: 67] Favorites ----------- Power Light Nuclear Core Engine Light Ion Engine Power Core Light Nuclear Core Propulsion Carbon-fiber Leg Leg Carbon-fiber Leg Wheel Armored Huge Wheel Hover Unit Improved Airjet Utility Large Storage Unit Device Actuator Array Storage Large Storage Unit Processor Signal Interpreter Hackware Authchip [R/Combat] Protection Improved Power Shielding Weapon Katana Energy Gun Field Laser Ballistic Gun Light Assault Rifle Ballistic Cannon Heavy Flak Cannon Launcher Rocket Launcher Impact Weapon Heavy Flail Slashing Weapon Katana Build | -11 -10 -9 -8 -8 -7 -6 -5 -5 -5 -5 ------- Run | Scr Mat Mat Mat Sto Fac Fac Fac Gar Fac Gar Slots Evolved 10 | . . 2 2 . 2 2 2 . . . Power . | . . . . . . . . . . . Propulsion 4 | . . 1 1 . . . 2 . . . Utility 5 | . . 1 1 . 2 1 . . . . Weapon 1 | . . . . . . 1 . . . . Parts Attached 140 | . 5 8 40 9 17 43 1 7 10 . Power 15 | . . . 4 2 2 6 . 1 . . Engine 5 | . . . 2 . . 2 . 1 . . Core 10 | . . . 2 2 2 4 . . . . Reactor . | . . . . . . . . . . . Propulsion 64 | . 3 2 17 4 5 22 1 4 6 . Treads . | . . . . . . . . . . . Leg 46 | . 3 2 11 4 5 20 1 . . . Wheel 2 | . . . 1 . . . . 1 . . Hover 16 | . . . 5 . . 2 . 3 6 . Flight . | . . . . . . . . . . . Utility 30 | . 2 2 3 2 8 12 . . 1 . Device 10 | . . 1 1 1 1 5 . . 1 . Storage 4 | . 1 1 . . . 2 . . . . Processor 7 | . 1 . 2 1 2 1 . . . . Hackware 1 | . . . . . . 1 . . . . Protection 8 | . . . . . 5 3 . . . . Artifact . | . . . . . . . . . . . Weapon 31 | . . 4 16 1 2 3 . 2 3 . Energy Gun 8 | . . 1 7 . . . . . . . Energy Cannon . | . . . . . . . . . . . Ballistic Gun 7 | . . 2 2 . . . . 1 2 . Ballistic Cannon 1 | . . . . . . . . . 1 . Launcher 4 | . . 1 3 . . . . . . . Special Weapon . | . . . . . . . . . . . Impact Weapon 6 | . . . 4 . . 2 . . . . Slashing Weapon 5 | . . . . 1 2 1 . 1 . . Piercing Weapon . | . . . . . . . . . . . Special Melee Weapon . | . . . . . . . . . . . Unidentified Prototypes 1 | . . . 1 . . . . . . . Parts Lost 64 | . . . 10 3 4 22 . 12 3 10 Power 10 | . . . 3 . . 5 . 1 . 1 Propulsion 24 | . . . 2 2 2 10 . 5 . 3 Utility 17 | . . . 1 1 2 5 . 2 2 4 Weapon 13 | . . . 4 . . 2 . 4 1 2 Highest Loss Streak 14 | . . . 4 1 2 14 . 9 3 10 To Critical Strikes 1 | . . . . . 1 . . . . . Average Slot Usage (%) 90 | . 89 90 97 98 97 83 94 68 64 61 Engine 3 | . 14 11 4 . . 2 5 3 5 4 Core 4 | . . . 4 9 7 2 . . . . Leg 26 | . 28 33 27 35 29 23 29 10 . . Hover 3 | . . . 8 . . . . 6 21 32 Device 5 | . . 2 7 9 7 5 5 1 5 2 Storage 7 | . 14 11 9 9 7 6 5 4 . . Processor 16 | . 3 11 18 17 21 14 11 11 11 5 Protection 4 | . . . . . 6 4 11 11 7 4 Energy Gun 1 | . . 2 7 . . . . . . . Ballistic Gun 3 | . 28 19 5 . . . . 2 3 7 Impact Weapon 4 | . . . 3 13 3 8 11 4 . . Slashing Weapon 5 | . . . . 4 11 9 5 . . . Naked Turns . | . . . . . . . . . . . Heaviest Build 53 | 10 15 28 33 35 50 53 46 46 29 29 Greatest Support 100 | 20 20 30 66 61 67 80 100 100 66 33 Greatest Overweight (x) 2 | . . . 2 . . 1 . 1 . . Average Overweight (x) . | . . . . . . . . . . . Largest Inventory Capacity 25 | 8 10 15 15 15 15 25 15 15 5 5 Average Capacity 14 | 8 8 14 15 15 15 15 15 14 5 5 Most Carried 15 | 5 10 15 15 15 15 15 14 14 5 5 Average Carried 12 | 5 6 11 14 14 14 13 14 9 5 5 Final Capacity 15 | 8 10 15 15 15 15 15 15 5 5 5 Final Carried 15 | 4 10 15 14 15 14 15 14 5 5 5 Class Distribution -------------------- 84% | Mutant 15% | Scavenger-Mutant Dominant Class ---------------- Mutant | -10/Materials Mutant | -9/Materials Mutant | -8/Materials Mutant | -8/Storage Mutant | -7/Factory Mutant | -6/Factory Mutant | -5/Factory Mutant | -5/Garrison Mutant | -5/Factory Mutant | -5/Garrison Resources | -11 -10 -9 -8 -8 -7 -6 -5 -5 -5 -5 ----------- Run | Scr Mat Mat Mat Sto Fac Fac Fac Gar Fac Gar Matter Collected 1841 | 200 70 86 743 65 180 331 . 166 . . Remotely . | . . . . . . . . . . . Salvage Created 4805 | . 255 204 1390 353 650 1640 . 250 63 . Parts 213 | . 13 15 65 20 21 69 . 6 4 . Haulers Intercepted 3 | . . 1 . . 1 1 . . . . Recyclers Shooed 4 | . 2 . . . . 2 . . . . Parts Field Recycled . | . . . . . . . . . . . Retrieved Matter . | . . . . . . . . . . . Parts Self-Destructed . | . . . . . . . . . . . Prevented . | . . . . . . . . . . . Kills | -11 -10 -9 -8 -8 -7 -6 -5 -5 -5 -5 ------- Run | Scr Mat Mat Mat Sto Fac Fac Fac Gar Fac Gar Combat Hostiles Destroyed 102 | . 6 8 35 11 10 23 . 6 3 . Melee 46 | . . . 4 8 9 20 . 5 . . Guns 31 | . 6 4 21 . . . . . . . Cannons 3 | . . . . . . . . . 3 . AOE 11 | . . 4 7 . . . . . . . Classes Destroyed 13 | . 1 3 7 . 1 1 . . . . Worker 2 | . . . 2 . . . . . . . Builder 2 | . . . 2 . . . . . . . Hauler 3 | . . 1 . . 1 1 . . . . Recycler 4 | . . . 1 1 . 2 . . . . Mechanic 1 | . . . . . . 1 . . . . Operator 2 | . . . 1 1 . . . . . . Watcher 3 | . . . 1 . 2 . . . . . Swarmer 29 | . . 4 9 8 . 3 . 3 2 . Grunt 45 | . 6 2 17 2 5 10 . 3 . . Brawler 1 | . . . 1 . . . . . . . Sentry 15 | . . 2 7 1 1 4 . . . . Hunter 7 | . . . 1 . 2 3 . . 1 . Programmer 5 | . . . . . 2 3 . . . . Best Kill Streak 9 | . 3 5 9 6 2 4 . 3 2 . Combat Bots Only 7 | . 3 4 7 5 2 4 . 3 2 . Max Kills in Single Turn 2 | . 1 2 2 1 1 1 . 2 1 . Gunslinging . | . . . . . . . . . . . Exploded 2 | . . 2 2 . . . . . . . Melee 2 | . . . 1 1 1 1 . 2 . . Uniques/NPCs Destroyed . | . . . . . . . . . . . Combat | -11 -10 -9 -8 -8 -7 -6 -5 -5 -5 -5 -------- Run | Scr Mat Mat Mat Sto Fac Fac Fac Gar Fac Gar Damage Taken 10782 | . 319 140 1896 439 1074 3139 . 2021 605 1149 Core 2476 | . 98 41 343 57 213 713 . 424 87 500 Absorbed by Shields 158 | . . . . . . 45 . 5 . 108 Redirected to Shielding 414 | . . . . . 243 . . 78 55 38 Core Remaining (%) 60 | 100 60 89 . 27 69 16 . . . . Volleys Fired 178 | . 28 17 95 . . . . 20 16 2 Largest 3 | . 2 2 2 . . . . 1 2 3 Hottest 126 | . 40 60 126 . . . . 23 76 106 Shots Fired 272 | . 56 31 137 . . . . 20 22 6 Gun 239 | . 56 28 125 . . . . 20 6 4 Cannon 18 | . . . . . . . . . 16 2 Launcher 15 | . . 3 12 . . . . . . . Special . | . . . . . . . . . . . Kinetic 173 | . 56 26 43 . . . . 20 22 6 Thermal 66 | . . 2 64 . . . . . . . Explosive 15 | . . 3 12 . . . . . . . Electromagnetic 18 | . . . 18 . . . . . . . Robot Hit Streak 26 | . 8 9 26 . . . . 7 8 3 Robot Miss Streak 6 | . 3 2 4 . . . . 2 6 6 Penetration Max 1 | . . . 1 . . . . . . . Secondary Targets 2 | . 2 . . . . . . . . . Max Gunslinging Chain 1 | . 1 . . . . . . . . . Shots Hit Robots 396 | . 43 21 118 27 35 108 . 22 18 4 Core Hits 190 | . 18 18 70 9 11 40 . 8 15 1 Critical Kills 4 | . 1 . 1 1 . . . 1 . . Critical Parts Destroyed 12 | . . . 4 1 2 4 . 1 . . Critical Strikes 37 | . 1 . 8 4 5 17 . 2 . . Burn 3 | . . . 3 . . . . . . . Destroy 1 | . 1 . . . . . . . . . Smash 15 | . . . 5 2 2 4 . 2 . . Sever 18 | . . . . 2 3 13 . . . . Melee Attacks 376 | . . . 31 50 87 171 5 32 . . Impact 139 | . . . 31 30 10 41 1 26 . . Slashing 237 | . . . . 20 77 130 4 6 . . Piercing . | . . . . . . . . . . . Sneak Attacks 16 | . . . 2 5 3 6 . . . . Combat Hostiles . | . . . . . . . . . . . Follow-up Attacks 63 | . . . . 10 8 42 . 3 . . Damage Inflicted 11559 | . 345 464 3353 1222 1365 3765 . 668 277 100 Guns 2441 | . 342 166 1679 . . . . 132 58 64 Cannons 242 | . . . . . . . . . 219 23 Explosions 1376 | . . 298 1078 . . . . . . . Melee 7484 | . . . 596 1222 1365 3765 . 536 . . Ramming 16 | . 3 . . . . . . . . 13 Kinetic 1515 | . 342 156 521 . . . . 132 277 87 Thermal 898 | . . 10 888 . . . . . . . Explosive 1376 | . . 298 1078 . . . . . . . Electromagnetic 270 | . . . 270 . . . . . . . Impact 2663 | . . . 596 766 215 690 . 396 . . Slashing 4821 | . . . . 456 1150 3075 . 140 . . Piercing . | . . . . . . . . . . . Highest Corruption 4 | . . . . . 2 4 . . . . Average Corruption 2 | . . . . . 2 2 . . . . Corruption Purged . | . . . . . . . . . . . Corruption Blocked . | . . . . . . . . . . . Effects 15 | . . . . . 4 11 . . . . Message Errors 3 | . . . . . . 3 . . . . Matter Fused 5 | . . . . . 1 4 . . . . Heat Flow Errors 1 | . . . . . 1 . . . . . Data Loss (minor) 4 | . . . . . 1 3 . . . . Data Loss (major) 2 | . . . . . 1 1 . . . . Overload Shots . | . . . . . . . . . . . Overflow Damage 977 | . . 27 273 198 177 235 . 67 . . Projectiles . | . . . . . . . . . . . Explosions 37 | . . 27 10 . . . . . . . Melee 940 | . . . 263 198 177 235 . 67 . . Knockbacks 23 | . . . 3 1 2 1 . 1 15 . Impact 8 | . . . 3 1 2 1 . 1 . . Kinetic 15 | . . . . . . . . . 15 . Secondary . | . . . . . . . . . . . Self-Inflicted Damage 98 | . . 15 77 . . . . . . 6 Shots 3 | . . 1 2 . . . . . . . Rammed 1 | . . . . . . . . . . 1 Targets Rammed 2 | . 1 . . . . . . . . 1 Kicked 1 | . 1 . . . . . . . . . Crushed . | . . . . . . . . . . . Highest Temperature 404 | . 22 6 173 . 77 8 . 6 404 156 Average Temperature 74 | . 10 4 50 . 34 6 . 6 192 60 Received Heat Transfer 2763 | . 198 15 864 72 138 733 . 462 36 245 Effects 2 | . . . . . . . . . 2 . Short Circuit 1 | . . . . . . . . . 1 . Damage (minor) 1 | . . . . . . . . . 1 . Siege Activations . | . . . . . . . . . . . Robots Corrupted 1 | . . . 1 . . . . . . . Combat Hostiles 1 | . . . 1 . . . . . . . Parts Fried 22 | . . . 9 7 . 5 . 1 . . Impact Corruptions 34 | . . . 11 8 5 9 . 1 . . Robots Melted . | . . . . . . . . . . . Combat Hostiles . | . . . . . . . . . . . Parts Melted 6 | . . . 6 . . . . . . . Heat Transferred 2196 | . . 25 2171 . . . . . . . Parts Sabotaged . | . . . . . . . . . . . Parts Stolen . | . . . . . . . . . . . Parts Stripped . | . . . . . . . . . . . Power Chain Reactions . | . . . . . . . . . . . Missiles Intercepted . | . . . . . . . . . . . Alert | -11 -10 -9 -8 -8 -7 -6 -5 -5 -5 -5 ------- Run | Scr Mat Mat Mat Sto Fac Fac Fac Gar Fac Gar Peak Influence 933 | . 210 284 933 672 429 430 97 317 290 203 Initial 341 | . . 88 85 341 305 115 89 67 165 203 Average 315 | . 92 165 539 504 278 276 94 206 213 178 Maximum Alert Level 3 | . 1 1 3 2 2 2 . 1 1 1 Low Security (%) 19 | 100 95 52 16 . . 12 100 43 47 65 Level 1 63 | . 4 47 28 28 98 83 . 56 52 34 Level 2 7 | . . . 8 71 1 3 . . . . Level 3 8 | . . . 46 . . . . . . . Level 4 . | . . . . . . . . . . . Level 5 . | . . . . . . . . . . . High Security . | . . . . . . . . . . . Max Security . | . . . . . . . . . . . Squads Dispatched 32 | . 2 1 4 2 7 12 . . 4 . Investigation 12 | . . . 3 1 3 4 . . 1 . Extermination 5 | . . . . . 3 2 . . . . Reinforcement 8 | . 2 1 1 1 1 1 . . 1 . Assault . | . . . . . . . . . . . Garrison 7 | . . . . . . 5 . . 2 . Intercept . | . . . . . . . . . . . Searches Triggered . | . . . . . . . . . . . Construction Impeded . | . . . . . . . . . . . Haulers Reinforced 1 | . . . . . . 1 . . . . Active Scanning Responses . | . . . . . . . . . . . Cargo Convoy Interrupts . | . . . . . . . . . . . Stealth | -11 -10 -9 -8 -8 -7 -6 -5 -5 -5 -5 --------- Run | Scr Mat Mat Mat Sto Fac Fac Fac Gar Fac Gar Distress Signals 11 | . 2 1 4 2 2 . . . . . Communications Jammed . | . . . . . . . . . . . Distress Signals . | . . . . . . . . . . . Times Spotted 182 | . 12 10 50 14 23 29 . 22 10 12 Peak Tracking Total 14 | . 4 4 7 7 4 4 . 10 6 14 Tactical Retreats 13 | . . . 2 1 2 3 . 3 1 1 Traps | -11 -10 -9 -8 -8 -7 -6 -5 -5 -5 -5 ------- Run | Scr Mat Mat Mat Sto Fac Fac Fac Gar Fac Gar Traps Triggered 7 | . . . . . 2 . . 1 . 4 Indirectly . | . . . . . . . . . . . Trap Hack Attempts . | . . . . . . . . . . . Triggered . | . . . . . . . . . . . Disarmed . | . . . . . . . . . . . Reprogrammed 1 | . . . 1 . . . . . . . Reused . | . . . . . . . . . . . Traps Extracted . | . . . . . . . . . . . Installed . | . . . . . . . . . . . Triggered . | . . . . . . . . . . . Machines | -11 -10 -9 -8 -8 -7 -6 -5 -5 -5 -5 ---------- Run | Scr Mat Mat Mat Sto Fac Fac Fac Gar Fac Gar Machines Disabled 10 | . . . 4 2 2 1 . 1 . . Max in Single Turn 2 | . . . 2 1 . 1 . 1 . . Garrison Access 2 | . . . 1 . . 1 . . . . Garrison Relay 1 | . . . . . . . . 1 . . Machines Sabotaged . | . . . . . . . . . . . Garrisons Compromised . | . . . . . . . . . . . Overloaded Fab Kills . | . . . . . . . . . . . Hacking | -11 -10 -9 -8 -8 -7 -6 -5 -5 -5 -5 --------- Run | Scr Mat Mat Mat Sto Fac Fac Fac Gar Fac Gar Machines Accessed 36 | . 1 3 13 1 6 9 1 . 2 . Terminals 21 | . 1 2 10 1 2 4 . . 1 . Fabricators 4 | . . . . . 2 2 . . . . Repair Stations 1 | . . . 1 . . . . . . . Recycling Units 1 | . . . 1 . . . . . . . Scanalyzers 5 | . . 1 . . 2 2 . . . . Garrison Access 4 | . . . 1 . . 1 1 . 1 . Total Hacks 93 | . 1 10 37 3 14 21 2 . 5 . Successful 48 | . 1 7 18 1 7 9 1 . 4 . Failed 45 | . . 3 19 2 7 12 1 . 1 . Catastrophic 10 | . . . 4 2 1 3 . . . . Database Lockouts . | . . . . . . . . . . . Manual 38 | . 1 2 29 1 1 3 . . 1 . Terminals 61 | . 1 7 34 3 3 9 . . 4 . Fabricators 11 | . . . . . 6 5 . . . . Repair Stations 1 | . . . 1 . . . . . . . Recycling Units 1 | . . . 1 . . . . . . . Scanalyzers 12 | . . 3 . . 5 4 . . . . Garrison Access 7 | . . . 1 . . 3 2 . 1 . Terminal Hacks 18 | . 1 4 8 1 . 1 . . 3 . Record 2 | . . . . . . . . . 2 . Part Schematic 1 | . . . 1 . . . . . . . Robot Analysis 2 | . 1 . 1 . . . . . . . Level Access Points 1 | . . . 1 . . . . . . . Emergency Access Points 1 | . . 1 . . . . . . . . Fabricator Index 1 | . . . . 1 . . . . . . Alert Level 3 | . . 2 1 . . . . . . . Unreport Threat 3 | . . 1 1 . . 1 . . . . Locate Traps 3 | . . . 2 . . . . . 1 . Reprogram Traps 1 | . . . 1 . . . . . . . Fabricator Hacks 7 | . . . . . 5 2 . . . . Network Status 1 | . . . . . . 1 . . . . Load Schematic 3 | . . . . . 2 1 . . . . Build 3 | . . . . . 3 . . . . . Repair Station Hacks . | . . . . . . . . . . . Recycling Unit Hacks . | . . . . . . . . . . . Scanalyzer 7 | . . 2 . . 2 3 . . . . Insert Component 4 | . . 1 . . 2 1 . . . . Analyze 3 | . . 1 . . . 2 . . . . Garrison Access Hacks 4 | . . . 1 . . 1 1 . 1 . Unlock Access 2 | . . . . . . . 1 . 1 . Seal Access 2 | . . . 1 . . 1 . . . . Unauthorized Hacks 12 | . . 1 9 . . 2 . . . . Terminals 12 | . . 1 9 . . 2 . . . . Assimilate 2 | . . . 2 . . . . . . . Botnet 10 | . . 1 7 . . 2 . . . . Fabricators . | . . . . . . . . . . . Repair Stations . | . . . . . . . . . . . Recycling Units . | . . . . . . . . . . . Scanalyzers . | . . . . . . . . . . . Garrison Access . | . . . . . . . . . . . Data Cores Recovered . | . . . . . . . . . . . Used . | . . . . . . . . . . . Hacking Detections 29 | . 1 1 11 1 5 8 1 . 1 . Full Trace Events 11 | . . . 2 1 3 4 . . 1 . Feedback Events 2 | . . . . . . 2 . . . . Corruption 2 | . . . . . . 2 . . . . Feedback Blocked . | . . . . . . . . . . . Robot Schematics Acquired . | . . . . . . . . . . . Robots Built 5 | . . . . . 5 . . . . . Authchips . | . . . . . . . . . . . Time 268 | . . . . . 268 . . . . . Total Robot Build Rating 20 | . . . . . 20 . . . . . Part Schematics Acquired 3 | . . 1 1 . . 1 . . . . Parts Built 2 | . . . . . 2 . . . . . Authchips . | . . . . . . . . . . . Time 73 | . . . . . 73 . . . . . Total Part Build Rating 6 | . . . . . 6 . . . . . Parts Repaired . | . . . . . . . . . . . Time . | . . . . . . . . . . . Parts Recycled . | . . . . . . . . . . . Recycled Matter . | . . . . . . . . . . . Retrieved Matter . | . . . . . . . . . . . Retrieved Components . | . . . . . . . . . . . Parts Scanalyzed 3 | . . 1 . . 1 1 . . . . Part Schematics Acquired 2 | . . 1 . . . 1 . . . . Parts Damaged . | . . . . . . . . . . . Bothacking | -11 -10 -9 -8 -8 -7 -6 -5 -5 -5 -5 ------------ Run | Scr Mat Mat Mat Sto Fac Fac Fac Gar Fac Gar Used RIF Installer 2 | . . . . . . . . 1 . 1 Signal Jammer 1 | . . . . . . . . . . 1 Robots Hacked . | . . . . . . . . . . . Non-combat . | . . . . . . . . . . . Combat . | . . . . . . . . . . . Robot Hacks Applied . | . . . . . . . . . . . Relay Couplers Released 5 | . . . . . . . . 5 . . Machine Destruction 5 | . . . . . . . . 5 . . Fabnet Peak Effective % . | . . . . . . . . . . . Robots Rewired . | . . . . . . . . . . . Allies Hacked . | . . . . . . . . . . . Hacks Repelled . | . . . . . . . . . . . Allies | -11 -10 -9 -8 -8 -7 -6 -5 -5 -5 -5 -------- Run | Scr Mat Mat Mat Sto Fac Fac Fac Gar Fac Gar Total Allies 5 | . . . . . 5 . . . . . Largest Group 3 | . . . . . 3 . . . . . Highest-Rated Group 90 | . . . . . 90 . . . . . Highest-Rated Ally 32 | . . . . . 32 . . . . . Total Orders . | . . . . . . . . . . . Ally Attacks 10 | . . . . . 10 . . . . . Total Damage 379 | . . . . . 379 . . . . . Kills 4 | . . . . . 4 . . . . . Allies Corrupted . | . . . . . . . . . . . Allies Melted . | . . . . . . . . . . . Intel | -11 -10 -9 -8 -8 -7 -6 -5 -5 -5 -5 ------- Run | Scr Mat Mat Mat Sto Fac Fac Fac Gar Fac Gar Robot Analysis Total 2 | . 1 . 1 . . . . . . . Derelict Logs Recovered . | . . . . . . . . . . . Drone Launches 2 | . . . . . . 2 . . . . Drone Recoveries 1 | . . . . . . . . 1 . . Exploration | -11 -10 -9 -8 -8 -7 -6 -5 -5 -5 -5 ------------- Run | Scr Mat Mat Mat Sto Fac Fac Fac Gar Fac Gar Turns Passed 6084 | 1 288 354 1147 390 1956 1223 107 286 228 104 Spaces Moved 4032 | 1 160 236 713 219 1285 664 74 242 320 118 Core . | . . . . . . . . . . . Treads . | . . . . . . . . . . . Legs 3070 | 1 160 236 448 219 1285 607 74 40 . . Wheels 9 | . . . 4 . . . . 5 . . Hover 953 | . . . 261 . . 57 . 197 320 118 Flight . | . . . . . . . . . . . Fastest Speed 38 | 120 120 120 38 110 112 56 130 52 50 62 Average Speed 104 | 120 120 120 92 117 118 119 130 66 53 62 Slowest Speed 200 | 120 120 120 127 125 125 200 130 130 62 70 Overloaded Moves . | . . . . . . . . . . . Propulsion Burnouts . | . . . . . . . . . . . Robots Hopped . | . . . . . . . . . . . Cave-ins Triggered . | . . . . . . . . . . . Exploration Rate (%) 31 | 2 35 28 72 46 35 22 2 60 8 32 Regions Visited 10 Branch Regions 1 Pre-discovered Areas . | . . . . . . . . . . . Known Exits Taken 8 | . 1 1 1 1 1 1 1 . 1 . Unknown Exits Taken 1 | 1 . . . . . . . . . . Scrap Searched . | . . . . . . . . . . . Spaces Dug 64 | . . . 4 1 36 19 4 . . . Terrain Destroyed 165 | . . 18 87 1 36 19 4 . . . Melee 64 | . . . 4 1 36 19 4 . . . Projectile . | . . . . . . . . . . . AOE 101 | . . 18 83 . . . . . . . Terrain Rammed . | . . . . . . . . . . . Walls Destroyed . | . . . . . . . . . . . Machines Disabled . | . . . . . . . . . . . Actions | -11 -10 -9 -8 -8 -7 -6 -5 -5 -5 -5 --------- Run | Scr Mat Mat Mat Sto Fac Fac Fac Gar Fac Gar Total 5195 | 2 209 279 1027 287 1618 898 78 300 353 144 Wait 421 | . 12 13 97 20 219 50 . 1 5 4 Move 4020 | . 159 235 712 218 1284 663 73 239 319 118 Hop . | . . . . . . . . . . . Pick Up 56 | . 3 4 26 1 11 11 . . . . Fast Attach 40 | . 1 2 5 1 1 19 . 1 10 . Attach 41 | . . 1 9 2 8 14 1 6 . . Detach 7 | . . 1 . . 3 2 . 1 . . Swap 59 | . 4 5 26 6 8 10 . . . . Drop 63 | 2 1 1 26 . 16 14 . . 3 . Fire 178 | . 28 17 95 . . . . 20 16 2 Melee 286 | . . . 31 39 68 115 4 29 . . Ram 1 | . . . . . . . . . . 1 Kick 1 | . 1 . . . . . . . . . Crush . | . . . . . . . . . . . Escape Stasis 22 | . . . . . . . . 3 . 19 Rewire . | . . . . . . . . . . . Trap . | . . . . . . . . . . . Miscellaneous . | . . . . . . . . . . . Route ------- -11/Scrapyard -10/Materials -9/Materials (discovered 2 exits: *Mat / *Min) -8/Materials (discovered 4 exits: Fac x3 / *Sto) -8/Storage -7/Factory (discovered 2 exits: *Fac / *Low) -6/Factory -5/Factory -5/Garrison (discovered 2 exits: *Fac x2) -5/Factory -5/Garrison History --------- Turn | Location | Event 2 | -11/Scrapyard | Discovered new exit (range 0) 2 | -11/Scrapyard | Entered Materials 286 | -10/Materials | Discovered new exit (range 4) 289 | -10/Materials | Identified exit to Materials 290 | -10/Materials | Entered another Materials area 290 | -9/Materials | Evolved 2 slots: Propulsion x1, Utility x1 312 | -9/Materials | Build established: Mutant 473 | -9/Materials | Discovered new exit (range 8) 481 | -9/Materials | Identified exit to Mines 615 | -9/Materials | Discovered new exit (range 16) 643 | -9/Materials | Identified exit to Materials 644 | -9/Materials | Entered another Materials area 644 | -8/Materials | Evolved 2 slots: Propulsion x1, Utility x1 1100 | -8/Materials | Destroyed 7 combat bots 1414 | -8/Materials | Core integrity fell below 50% 1546 | -8/Materials | Lost 4 parts (1n3w) 1736 | -8/Materials | Identified exit to Factory 1771 | -8/Materials | Discovered new exit (range 6) 1777 | -8/Materials | Identified exit to Storage 1791 | -8/Materials | Entered Storage 2138 | -8/Storage | Discovered exit to Factory (range 5) 2181 | -8/Storage | Entered Factory 2181 | -7/Factory | Evolved 2 slots: Utility x2 2440 | -7/Factory | Discovered new exit (range 10) 2493 | -7/Factory | Identified exit to Lower Caves 3054 | -7/Factory | Fabricated Y-54 Guardian (x2) 3128 | -7/Factory | Fabricated Katana (x2) 3636 | -7/Factory | Fabricated L-41 Fighter? 4122 | -7/Factory | Discovered new exit (range 9) 4136 | -7/Factory | Identified exit to Factory 4137 | -7/Factory | Entered another Factory area 4137 | -6/Factory | Evolved 2 slots: Utility x1, Weapon x1 4231 | -6/Factory | Garrison activated, responded to threat 4651 | -6/Factory | Garrison activated, responded to threat 4708 | -6/Factory | Lost 14 parts (3p6n4u1w) 4720 | -6/Factory | Core integrity fell below 50% 4791 | -6/Factory | Lost 3 parts (1p2n) 4856 | -6/Factory | Lost 3 parts (1p2n) 5013 | -6/Factory | Core integrity fell below 20% 5339 | -6/Factory | Discovered new exit (range 9) 5347 | -6/Factory | Identified exit to Factory 5360 | -6/Factory | Entered another Factory area 5360 | -5/Factory | Accompanied by 2 allies 5360 | -5/Factory | Evolved 2 slots: Propulsion x2 5465 | -5/Factory | Identified exit to Garrison 5467 | -5/Factory | Entered Garrison 5467 | -5/Garrison | Accompanied by 2 allies 5498 | -5/Garrison | Triggered checkpoint 5603 | -5/Garrison | Lost 9 parts (1p4n1u3w) 5650 | -5/Garrison | Triggered checkpoint 5656 | -5/Garrison | Triggered checkpoint 5666 | -5/Garrison | Discovered new exit (range 11) 5670 | -5/Garrison | Identified exit to Factory 5671 | -5/Garrison | Attempted to access garrison exit controls, blocked by remote lockdown 5697 | -5/Garrison | Garrison Relay disabled 5723 | -5/Garrison | Triggered checkpoint 5741 | -5/Garrison | Discovered exit to Factory (range 14) 5751 | -5/Garrison | Installed Relay Interface Framework 5753 | -5/Garrison | Entered Factory 5855 | -5/Factory | Garrison activated, responded to threat 5898 | -5/Factory | Lost 3 parts (2u1w) 5939 | -5/Factory | Core integrity fell below 50% 5981 | -5/Factory | Identified exit to Garrison 5981 | -5/Factory | Entered Garrison 5985 | -5/Garrison | Expanded RIF knowledge: Signal Jamming 6002 | -5/Garrison | Triggered checkpoint 6061 | -5/Garrison | Triggered checkpoint 6074 | -5/Garrison | Core integrity fell below 20% 6085 | -5/Garrison | Destroyed by C-35 Carver with Carbide Saw Last Messages --------------- 06058_ Hvy. Assault Rifle destroyed. 06059_ Hvy. Machine Gun severed. 06061_ Imp. Power Shielding destroyed. 06061_ Imp. Deuterium Engine destroyed. 06061_ Beams of light sweep through the air. An alarm sounds. 06067_ Gyrokinetic Inverter destroyed. 06070_ Slug penetrates Wall. 06072_ Triggered Stasis Trap. 06072_ A bubble of rippling energy engulfs the area. 06072_ Field strength at 67. 06072_ Field strength at 34. 06073_ Penetrated by Slug. 06073_ Stasis field depleted. 06075_ Triggered Stasis Trap. 06075_ A bubble of rippling energy engulfs the area. 06075_ Field strength at 67. 06076_ Field strength at 34. 06077_ Stasis field depleted. 06078_ Gyrokinetic Inverter severed. 06085_ Gyrokinetic Inverter destroyed. Map ----- +----------------------------------------------------+ | ?????????????????????????????????????????????????? | | ?????????????????????????????????????????????????? | | ?????????????????????????????????????????????????? | | ?????????????????????????????????????????????????? | | ?????????????????????????????????????????????????? | | ?????????????????????????????????????????????????? | | ?????????????????????????????????????????????????? | | ?????????????????????????????????????????????????? | | ?????????????????????????????????????????????????? | | ?????????????????????????????????????????????????? | | ?????????????????????????????????????????????????? | | ?????????????????????????????????????????????????? | | ?????????????????????????????????????????????????? | | ?????????????????????????????????????????????????? | | ?????????????????????????????????????????????????? | | ?????????????????????????????????????????????????? | | ?????????????????????????????????????????????????? | | ?????????????????????????????????????????????????? | | ?????????????????????????????????????????????????? | | ?????????????????????????????????????????????????? | | ?????????????????????????????????????????????????? | | ?????????????????????????????????????????????????? | | ?????????????????????????????????????????????????? | | ???????????????????????????????????????#?????????? | | ???????????????????# ################ #######???? | | ???????????????????# @ccc = #???? | | ???????????????????# c g #???? | | ???????????????????##########+### ######## #???? | | ????????????????????????????????# #??????# #???? | | ????????????????????????????????# #??????# #???? | | ????????????????????????????????# #??????# #???? | | ????????????????????????????# ### #??????# #???? | | ????????????????????????????# " #??????# #??## | | ????????????????????????????##### #??????# #? | | ????????????????????????????????# #?????## ## | | ????????????????????????????????# ####### | | ????????????????????????????????# [ | | ????????????????????????????????# | | ????????????????????????????????###+###### ## | | ??????????????????????????????????? #????# ## | | ??????????????????????????????????? #????" | | ??????????????????????????????????? ????" | | ???????????????????????????????????##????" | | ?????????????????????????????????????????" | | ?????????????????????????????????????????# ## | | ?????????????????????????????????????????# ## | | ????????????????????????????????????????? | | ???????????????????????????????????????? | | ????????????????????????????????????????## | | ?????????????????????????????????????????## ##""" | +----------------------------------------------------+ Best States ------------- Heat Dissipation 41 Energy Generation 18 Energy Capacity 290 Matter Stores 300 Matter Capacity 300 Sight Range 20 Terrain Scan Density 85 ECM Strength 2 Armor Coverage 600 Power Shielding 66 Propulsion Shielding 66 Evasion (%) 57 Targeting Accuracy 8 Melee Accuracy 6 Target Analysis 5 Recoil Reduction 6 Authchip Count 1 Item Schematics ----------------- Lgt. Nuclear Core | -9/Materials | Scanalyzed Katana | -8/Materials | Hacked Greatsword | -6/Factory | Scanalyzed Robot Schematics ------------------ None Fabricated ------------ Y-54 Guardian | x2 | -7/Factory | Preloaded Katana | x2 | -7/Factory L-41 Fighter | x3 | -7/Factory | Preloaded Alien Tech Used ----------------- None Achievements -------------- None Challenges ------------ None Game ------ Seed TacticalStasisArchive Manual? 0 Play Time 01:18:03 Cumulative 43.0 hours Start 2022.06.28 @ 15:34:31 End 2022.06.28 @ 16:51:00 Sessions 1 Manual Loads 0 Difficulty Rogue Special Mode None Game No. 70 Rogue 70 Adventurer 0 Explorer 0 Win Type - Total 0 Types 0/0/0/0/0/0/0/0/0 Lore% 27 Gallery% 31 Achievement% 27 Wizard Run 0 Options --------- ASCII 0 Keyboard 1 Movement Vi Keybinds 1 Fullscreen 1 Font 24/Smallcaps Map View 76x50 Tactical HUD 1 Map Filters NONE Filters NONE Steam 1 RUN: aa287d58-81b8-43b1-a75f-f8360258718f